[Event "*** Titled Tuesday Blitz"]
[Site "Chess.com"]
[Date "2020.05.05"]
[Round "6"]
[White "Boudicca64"]
[Black "GiorgianBarbosa"]
[Result "0-1"]
[WhiteElo "1962"]
[BlackElo "2368"]
[TimeControl "180+1"]
[EndTime "11:07:48 PDT"]
[Termination "GiorgianBarbosa won on time"]

1. d4 {[%clk 0:03:00.9]} 1... Nf6 {[%clk 0:02:59.6]} 2. c4 {[%clk 0:03:00.2]}
2... e6 {[%clk 0:03:00]} 3. Nf3 {[%clk 0:02:58.9]} 3... c5 {[%clk 0:03:00.5]} 4.
d5 {[%clk 0:02:58.8]} 4... exd5 {[%clk 0:03:01.4]} 5. cxd5 {[%clk 0:02:59.7]}
5... d6 {[%clk 0:03:01.9]} 6. Nc3 {[%clk 0:03:00.3]} 6... g6 {[%clk 0:03:02.5]}
7. e4 {[%clk 0:03:00.9]} 7... Bg7 {[%clk 0:03:02.8]} 8. h3 {[%clk 0:03:01.4]}
8... O-O {[%clk 0:03:03.1]} 9. Bd3 {[%clk 0:03:01.7]} 9... b6 {[%clk 0:03:03.4]}
10. a4 {[%clk 0:03:02]} 10... Ba6 {[%clk 0:03:03.9]} 11. Nb5 {[%clk 0:02:58.4]}
11... Re8 {[%clk 0:02:58.5]} 12. Qc2 {[%clk 0:02:57.2]} 12... Nxd5 {[%clk
0:02:53.9]} 13. O-O {[%clk 0:02:57.5]} 13... Nb4 {[%clk 0:02:54]} 14. Qc4 {[%clk
0:02:55]} 14... N8c6 {[%clk 0:02:40.3]} 15. Bg5 {[%clk 0:02:46]} 15... Qd7
{[%clk 0:02:31.3]} 16. Rad1 {[%clk 0:02:43.3]} 16... Ne5 {[%clk 0:02:13.1]} 17.
Nxe5 {[%clk 0:02:13.6]} 17... Bxe5 {[%clk 0:02:04.9]} 18. f4 {[%clk 0:02:09.1]}
18... Bxb5 {[%clk 0:02:02.3]} 19. axb5 {[%clk 0:02:06.8]} 19... Bxb2 {[%clk
0:02:01.1]} 20. Bb1 {[%clk 0:02:06.4]} 20... Bg7 {[%clk 0:01:54.4]} 21. f5
{[%clk 0:01:58.1]} 21... a6 {[%clk 0:01:37.5]} 22. fxg6 {[%clk 0:01:45.8]} 22...
hxg6 {[%clk 0:01:35]} 23. bxa6 {[%clk 0:01:45.4]} 23... Rxa6 {[%clk 0:01:33.5]}
24. e5 {[%clk 0:01:45.8]} 24... d5 {[%clk 0:01:14.9]} 25. Qh4 {[%clk 0:01:23.5]}
25... Rxe5 {[%clk 0:01:12.3]} 26. Bf6 {[%clk 0:01:10.2]} 26... Rh5 {[%clk
0:00:47.8]} 27. Qf4 {[%clk 0:01:01.6]} 27... Bxf6 {[%clk 0:00:38.8]} 28. Qxf6
{[%clk 0:00:59.4]} 28... b5 {[%clk 0:00:39.2]} 29. Qf2 {[%clk 0:00:52.3]} 29...
d4 {[%clk 0:00:36.2]} 30. Be4 {[%clk 0:00:42.8]} 30... Re6 {[%clk 0:00:34.1]}
31. Ra1 {[%clk 0:00:36.5]} 31... Rxe4 {[%clk 0:00:29.6]} 32. Qf6 {[%clk
0:00:15.8]} 32... Re8 {[%clk 0:00:17.6]} 33. Rfe1 {[%clk 0:00:14.2]} 33... Nd5
{[%clk 0:00:15.2]} 34. Qf3 {[%clk 0:00:11.5]} 34... Ne3 {[%clk 0:00:13.7]} 35.
Ra8 {[%clk 0:00:07]} 35... Rxa8 {[%clk 0:00:12.7]} 36. Qxa8+ {[%clk 0:00:06.4]}
36... Kg7 {[%clk 0:00:13.1]} 37. Qa1 {[%clk 0:00:06.1]} 37... Re5 {[%clk
0:00:10.7]} 0-1

[Event "*** Titled Tuesday Blitz"]
[Site "Chess.com"]
[Date "2020.05.05"]
[Round "6"]
[White "ljuks68"]
[Black "powermove"]
[Result "1-0"]
[WhiteElo "2367"]
[BlackElo "1680"]
[TimeControl "180+1"]
[EndTime "11:07:49 PDT"]
[Termination "ljuks68 won on time"]

1. e4 {[%clk 0:03:00.9]} 1... e5 {[%clk 0:02:58.5]} 2. Nf3 {[%clk 0:03:00.9]}
2... Nc6 {[%clk 0:02:57.6]} 3. Bb5 {[%clk 0:03:00.6]} 3... a6 {[%clk 0:02:57.1]}
4. Ba4 {[%clk 0:03:00.7]} 4... Nf6 {[%clk 0:02:56.8]} 5. O-O {[%clk 0:02:59.9]}
5... Be7 {[%clk 0:02:56.9]} 6. Qe2 {[%clk 0:02:59.8]} 6... b5 {[%clk 0:02:55.5]}
7. Bb3 {[%clk 0:02:58.9]} 7... d6 {[%clk 0:02:54.4]} 8. c3 {[%clk 0:02:59.1]}
8... O-O {[%clk 0:02:53.7]} 9. d4 {[%clk 0:02:58.6]} 9... Bb7 {[%clk 0:02:47.2]}
10. Rd1 {[%clk 0:02:57.2]} 10... Qc8 {[%clk 0:02:41.7]} 11. a4 {[%clk
0:02:55.4]} 11... Qg4 {[%clk 0:02:39.1]} 12. Nbd2 {[%clk 0:02:45.8]} 12... b4
{[%clk 0:02:17.2]} 13. a5 {[%clk 0:02:43.4]} 13... bxc3 {[%clk 0:02:11.3]} 14.
bxc3 {[%clk 0:02:42.7]} 14... Rfe8 {[%clk 0:01:53.5]} 15. h3 {[%clk 0:02:25.5]}
15... Qh5 {[%clk 0:01:52.1]} 16. d5 {[%clk 0:02:22.5]} 16... Nb8 {[%clk
0:01:50.8]} 17. c4 {[%clk 0:02:19.1]} 17... Nbd7 {[%clk 0:01:49.8]} 18. Ba4
{[%clk 0:02:19]} 18... Rf8 {[%clk 0:01:47]} 19. Nb3 {[%clk 0:02:15.3]} 19...
Rad8 {[%clk 0:01:24.6]} 20. Ba3 {[%clk 0:02:09.8]} 20... h6 {[%clk 0:01:20]} 21.
Nbd2 {[%clk 0:02:08.9]} 21... Nh7 {[%clk 0:01:18.6]} 22. Nf1 {[%clk 0:02:07.7]}
22... Ng5 {[%clk 0:01:17.2]} 23. Ng3 {[%clk 0:02:01.2]} 23... Nxf3+ {[%clk
0:01:08.9]} 24. Qxf3 {[%clk 0:02:01.1]} 24... Qxf3 {[%clk 0:01:07.9]} 25. gxf3
{[%clk 0:02:00.9]} 25... g6 {[%clk 0:01:03]} 26. Rdb1 {[%clk 0:01:55.5]} 26...
Bc8 {[%clk 0:01:02]} 27. Bc2 {[%clk 0:01:52]} 27... Kg7 {[%clk 0:00:42]} 28. Kh2
{[%clk 0:01:42.4]} 28... Bg5 {[%clk 0:00:34.9]} 29. Nf1 {[%clk 0:01:30.7]} 29...
Bf4+ {[%clk 0:00:33.8]} 30. Kg2 {[%clk 0:01:29.3]} 30... Nf6 {[%clk 0:00:33.4]}
31. c5 {[%clk 0:01:25.4]} 31... Nh5 {[%clk 0:00:30.2]} 32. h4 {[%clk 0:01:09.8]}
32... g5 {[%clk 0:00:22.2]} 33. Ng3 {[%clk 0:01:06.5]} 33... Bxg3 {[%clk
0:00:14.4]} 34. fxg3 {[%clk 0:01:05.8]} 34... gxh4 {[%clk 0:00:14.4]} 35. g4
{[%clk 0:01:00]} 35... Nf4+ {[%clk 0:00:13.5]} 36. Kf2 {[%clk 0:00:59.8]} 36...
dxc5 {[%clk 0:00:10]} 37. Bxc5 {[%clk 0:00:58.4]} 37... h3 {[%clk 0:00:09.2]}
38. Be3 {[%clk 0:00:52.8]} 38... Ng2 {[%clk 0:00:06.3]} 39. Rh1 {[%clk
0:00:48.2]} 39... Nxe3 {[%clk 0:00:04.8]} 40. Kxe3 {[%clk 0:00:47.9]} 40... Bd7
{[%clk 0:00:02.8]} 41. Rxh3 {[%clk 0:00:46.7]} 41... Bb5 {[%clk 0:00:02.6]} 42.
Bb3 {[%clk 0:00:32.4]} 42... Rd6 {[%clk 0:00:02.2]} 43. Rc1 {[%clk 0:00:30.7]}
1-0

[Event "*** Titled Tuesday Blitz"]
[Site "Chess.com"]
[Date "2020.05.05"]
[Round "6"]
[White "suneebaker"]
[Black "seastar"]
[Result "1-0"]
[WhiteElo "2171"]
[BlackElo "2016"]
[TimeControl "180+1"]
[EndTime "11:07:49 PDT"]
[Termination "suneebaker won on time"]

1. e4 {[%clk 0:03:00.9]} 1... c5 {[%clk 0:02:58.3]} 2. Nf3 {[%clk 0:03:00.4]}
2... g6 {[%clk 0:02:58.4]} 3. c3 {[%clk 0:02:59.4]} 3... Bg7 {[%clk 0:02:57.6]}
4. Bd3 {[%clk 0:02:58.7]} 4... e6 {[%clk 0:02:56.4]} 5. O-O {[%clk 0:02:58.5]}
5... Ne7 {[%clk 0:02:56.6]} 6. Re1 {[%clk 0:02:58.3]} 6... O-O {[%clk
0:02:56.8]} 7. Bc2 {[%clk 0:02:58.2]} 7... Nbc6 {[%clk 0:02:54.5]} 8. h3 {[%clk
0:02:57.3]} 8... d5 {[%clk 0:02:47.8]} 9. d3 {[%clk 0:02:56.9]} 9... a6 {[%clk
0:02:46.8]} 10. Bf4 {[%clk 0:02:55.3]} 10... b5 {[%clk 0:02:36.2]} 11. Qc1
{[%clk 0:02:53.9]} 11... e5 {[%clk 0:02:33.3]} 12. Bh6 {[%clk 0:02:53.2]} 12...
d4 {[%clk 0:02:25.9]} 13. Bxg7 {[%clk 0:02:52.4]} 13... Kxg7 {[%clk 0:02:25.1]}
14. a4 {[%clk 0:02:49.3]} 14... Bb7 {[%clk 0:02:08.2]} 15. axb5 {[%clk
0:02:46.3]} 15... axb5 {[%clk 0:02:06.9]} 16. Rxa8 {[%clk 0:02:46]} 16... Bxa8
{[%clk 0:02:06.3]} 17. Na3 {[%clk 0:02:45.7]} 17... Qb6 {[%clk 0:01:53.9]} 18.
cxd4 {[%clk 0:02:44.7]} 18... cxd4 {[%clk 0:01:51.7]} 19. Bb3 {[%clk 0:02:38.2]}
19... f6 {[%clk 0:01:50.6]} 20. Qd2 {[%clk 0:02:17.4]} 20... Na5 {[%clk
0:01:42.9]} 21. Ba2 {[%clk 0:02:17]} 21... Rc8 {[%clk 0:01:26.4]} 22. Rc1 {[%clk
0:02:15.5]} 22... Rxc1+ {[%clk 0:01:19.9]} 23. Qxc1 {[%clk 0:02:14.5]} 23... Qc6
{[%clk 0:01:20]} 24. Qd2 {[%clk 0:02:07.1]} 24... Qb6 {[%clk 0:00:44.6]} 25. Qb4
{[%clk 0:02:04.8]} 25... Nac6 {[%clk 0:00:41.4]} 26. Qxb5 {[%clk 0:02:01.8]}
26... Qxb5 {[%clk 0:00:40.9]} 27. Nxb5 {[%clk 0:02:01.7]} 27... Nb4 {[%clk
0:00:41.2]} 28. Bc4 {[%clk 0:01:59.7]} 28... Nec6 {[%clk 0:00:38.4]} 29. Nc7
{[%clk 0:01:55.8]} 29... Bb7 {[%clk 0:00:37.1]} 30. Ne1 {[%clk 0:01:52.4]} 30...
Na5 {[%clk 0:00:36.4]} 31. Ne6+ {[%clk 0:01:51.3]} 31... Kh8 {[%clk 0:00:34.6]}
32. b3 {[%clk 0:01:41.5]} 32... Na2 {[%clk 0:00:27.8]} 33. f4 {[%clk 0:01:34.6]}
33... Nc3 {[%clk 0:00:26.5]} 34. Kf2 {[%clk 0:01:32.2]} 34... Nd1+ {[%clk
0:00:22.7]} 35. Kg3 {[%clk 0:01:30.7]} 35... Ne3 {[%clk 0:00:22.4]} 36. fxe5
{[%clk 0:01:27.5]} 36... fxe5 {[%clk 0:00:21.6]} 37. Nf3 {[%clk 0:01:27]} 37...
Naxc4 {[%clk 0:00:21.1]} 38. bxc4 {[%clk 0:01:26.2]} 38... Bc8 {[%clk
0:00:13.2]} 39. Nc7 {[%clk 0:01:18.1]} 39... Nf1+ {[%clk 0:00:12.3]} 40. Kf2
{[%clk 0:01:16.9]} 40... Ne3 {[%clk 0:00:09.9]} 41. Nxe5 {[%clk 0:01:16.8]}
41... Nd1+ {[%clk 0:00:09.9]} 42. Ke2 {[%clk 0:01:12.3]} 42... Nb2 {[%clk
0:00:10]} 43. Nf3 {[%clk 0:01:11.4]} 43... Kg7 {[%clk 0:00:08.8]} 44. Nxd4
{[%clk 0:01:11]} 44... Kf6 {[%clk 0:00:09]} 45. Nd5+ {[%clk 0:01:10.8]} 45...
Ke5 {[%clk 0:00:09]} 46. Nf3+ {[%clk 0:01:10.2]} 46... Kd6 {[%clk 0:00:08.9]}
47. Kd2 {[%clk 0:01:08.6]} 47... Be6 {[%clk 0:00:07.4]} 48. Kc3 {[%clk
0:01:07.1]} 48... Nd1+ {[%clk 0:00:06.6]} 49. Kd4 {[%clk 0:01:06.1]} 49... Nf2
{[%clk 0:00:06.3]} 50. c5+ {[%clk 0:01:03.1]} 50... Kc6 {[%clk 0:00:04.9]} 51.
Ne5+ {[%clk 0:01:02.2]} 51... Kb7 {[%clk 0:00:04.5]} 52. Nf4 {[%clk 0:01:01.1]}
52... Bc8 {[%clk 0:00:03.3]} 53. Nf3 {[%clk 0:01:00]} 53... Nd1 {[%clk
0:00:01.8]} 54. Ke5 {[%clk 0:00:58.5]} 54... Nb2 {[%clk 0:00:01.5]} 55. d4
{[%clk 0:00:57.2]} 1-0

[Event "*** Titled Tuesday Blitz"]
[Site "Chess.com"]
[Date "2020.05.05"]
[Round "6"]
[White "Alopekos"]
[Black "johnathan113"]
[Result "1-0"]
[WhiteElo "2470"]
[BlackElo "2719"]
[TimeControl "180+1"]
[EndTime "11:07:50 PDT"]
[Termination "Alopekos won on time"]

1. e4 {[%clk 0:03:00.9]} 1... c5 {[%clk 0:02:59.4]} 2. Nc3 {[%clk 0:03:00.5]}
2... g6 {[%clk 0:02:59.1]} 3. Nge2 {[%clk 0:02:59.3]} 3... Bg7 {[%clk
0:02:57.3]} 4. d4 {[%clk 0:02:59.8]} 4... cxd4 {[%clk 0:02:58.2]} 5. Nxd4 {[%clk
0:03:00.4]} 5... Nc6 {[%clk 0:02:58.8]} 6. Nxc6 {[%clk 0:03:00.9]} 6... bxc6
{[%clk 0:02:58.8]} 7. Bc4 {[%clk 0:03:01.7]} 7... d6 {[%clk 0:02:57.9]} 8. Qf3
{[%clk 0:03:01.5]} 8... Nf6 {[%clk 0:02:58.3]} 9. e5 {[%clk 0:03:02.1]} 9...
dxe5 {[%clk 0:02:59.2]} 10. Qxc6+ {[%clk 0:03:02.5]} 10... Bd7 {[%clk
0:02:59.7]} 11. Qa6 {[%clk 0:03:03.1]} 11... O-O {[%clk 0:03:00.1]} 12. O-O
{[%clk 0:03:03.7]} 12... Qc7 {[%clk 0:02:58]} 13. Bb3 {[%clk 0:03:04]} 13... Bc6
{[%clk 0:02:31.7]} 14. h3 {[%clk 0:02:45.7]} 14... Rfd8 {[%clk 0:01:52.7]} 15.
Be3 {[%clk 0:02:40.4]} 15... Rd6 {[%clk 0:01:46.7]} 16. Nb5 {[%clk 0:01:49.4]}
16... Qd7 {[%clk 0:01:42.4]} 17. Nxd6 {[%clk 0:01:43.7]} 17... exd6 {[%clk
0:01:39.4]} 18. c4 {[%clk 0:01:16.8]} 18... Bb7 {[%clk 0:01:08.5]} 19. Qb5
{[%clk 0:00:52.8]} 19... Bc6 {[%clk 0:01:07.7]} 20. Qa5 {[%clk 0:00:33]} 20...
Qb7 {[%clk 0:00:57.9]} 21. f3 {[%clk 0:00:32]} 21... d5 {[%clk 0:00:58.1]} 22.
cxd5 {[%clk 0:00:22.6]} 22... Bxd5 {[%clk 0:00:59]} 23. Rfd1 {[%clk 0:00:05.4]}
23... Bxb3 {[%clk 0:00:59]} 24. axb3 {[%clk 0:00:06.3]} 24... e4 {[%clk
0:00:44.6]} 25. Rd8+ {[%clk 0:00:06.1]} 25... Ne8 {[%clk 0:00:22]} 26. Rxa8
{[%clk 0:00:04.2]} 26... Qxa8 {[%clk 0:00:22.4]} 27. Qxa7 {[%clk 0:00:04.5]}
27... Qd5 {[%clk 0:00:22]} 28. Qa8 {[%clk 0:00:04.4]} 28... Qb5 {[%clk
0:00:18.9]} 29. Qxe4 {[%clk 0:00:02.3]} 29... h5 {[%clk 0:00:18.5]} 30. Ra8
{[%clk 0:00:02.2]} 30... Kh7 {[%clk 0:00:12]} 31. Qxe8 {[%clk 0:00:02.3]} 1-0

[Event "*** Titled Tuesday Blitz"]
[Site "Chess.com"]
[Date "2020.05.05"]
[Round "6"]
[White "ajian"]
[Black "Juanovic"]
[Result "1-0"]
[WhiteElo "2396"]
[BlackElo "2179"]
[TimeControl "180+1"]
[EndTime "11:07:50 PDT"]
[Termination "ajian won by checkmate"]

1. d4 {[%clk 0:03:00.9]} 1... d5 {[%clk 0:02:59.6]} 2. c4 {[%clk 0:03:01.2]}
2... c6 {[%clk 0:02:59.8]} 3. Nf3 {[%clk 0:03:00.7]} 3... Nf6 {[%clk 0:03:00.2]}
4. e3 {[%clk 0:03:00]} 4... e6 {[%clk 0:03:00.4]} 5. Bd3 {[%clk 0:02:59.6]} 5...
Nbd7 {[%clk 0:03:01]} 6. Nbd2 {[%clk 0:02:55.6]} 6... Bb4 {[%clk 0:02:58.9]} 7.
O-O {[%clk 0:02:55.6]} 7... O-O {[%clk 0:02:57.8]} 8. a3 {[%clk 0:02:55.3]} 8...
Bxd2 {[%clk 0:02:57.7]} 9. Bxd2 {[%clk 0:02:50.6]} 9... Ne4 {[%clk 0:02:58]} 10.
Qc2 {[%clk 0:02:44.7]} 10... f5 {[%clk 0:02:56.8]} 11. Ne1 {[%clk 0:02:17]}
11... Qh4 {[%clk 0:02:47.1]} 12. f3 {[%clk 0:02:12.6]} 12... Nxd2 {[%clk
0:02:46.6]} 13. Qxd2 {[%clk 0:02:12.4]} 13... Rf6 {[%clk 0:02:46.3]} 14. g3
{[%clk 0:02:03.9]} 14... Qh3 {[%clk 0:02:42.1]} 15. Ng2 {[%clk 0:02:01.3]} 15...
g5 {[%clk 0:02:39.7]} 16. e4 {[%clk 0:01:46.4]} 16... Rg6 {[%clk 0:02:05.1]} 17.
exf5 {[%clk 0:01:39]} 17... exf5 {[%clk 0:02:05.2]} 18. cxd5 {[%clk 0:01:20.7]}
18... cxd5 {[%clk 0:02:01.4]} 19. Ne3 {[%clk 0:01:14.8]} 19... Nf6 {[%clk
0:01:59.9]} 20. Qc2 {[%clk 0:00:55.5]} 20... Be6 {[%clk 0:01:05.1]} 21. Bxf5
{[%clk 0:00:53.8]} 21... Bxf5 {[%clk 0:01:02.5]} 22. Qxf5 {[%clk 0:00:53.8]}
22... Qxf5 {[%clk 0:00:59.8]} 23. Nxf5 {[%clk 0:00:54.7]} 23... Kf7 {[%clk
0:00:50.8]} 24. Rac1 {[%clk 0:00:48]} 24... Rd8 {[%clk 0:00:49.8]} 25. Rc7+
{[%clk 0:00:29.7]} 25... Rd7 {[%clk 0:00:50.1]} 26. Nd6+ {[%clk 0:00:30.2]}
26... Ke6 {[%clk 0:00:46.2]} 27. Rxd7 {[%clk 0:00:30.2]} 27... Kxd7 {[%clk
0:00:46]} 28. Nxb7 {[%clk 0:00:30.5]} 28... Ne8 {[%clk 0:00:41.5]} 29. Nc5+
{[%clk 0:00:30.6]} 29... Kd6 {[%clk 0:00:39.2]} 30. Re1 {[%clk 0:00:30.8]} 30...
Nc7 {[%clk 0:00:38.9]} 31. Kf2 {[%clk 0:00:29]} 31... Nb5 {[%clk 0:00:35.9]} 32.
Ke3 {[%clk 0:00:26.6]} 32... h5 {[%clk 0:00:30.5]} 33. Kd3 {[%clk 0:00:26.4]}
33... Nc7 {[%clk 0:00:29.7]} 34. Re5 {[%clk 0:00:24.4]} 34... h4 {[%clk
0:00:27.8]} 35. Rf5 {[%clk 0:00:19.2]} 35... hxg3 {[%clk 0:00:26.1]} 36. hxg3
{[%clk 0:00:20.1]} 36... a5 {[%clk 0:00:21.6]} 37. Rf7 {[%clk 0:00:19.3]} 37...
Rh6 {[%clk 0:00:18.5]} 38. b4 {[%clk 0:00:15.3]} 38... axb4 {[%clk 0:00:18.3]}
39. axb4 {[%clk 0:00:16.2]} 39... Rh3 {[%clk 0:00:17.1]} 40. g4 {[%clk
0:00:09.6]} 40... Kc6 {[%clk 0:00:15.1]} 41. Rf6+ {[%clk 0:00:09]} 41... Kb5
{[%clk 0:00:15]} 42. Rf7 {[%clk 0:00:06.8]} 42... Ne8 {[%clk 0:00:12.2]} 43.
Rb7+ {[%clk 0:00:06.6]} 43... Kc6 {[%clk 0:00:12.2]} 44. b5+ {[%clk 0:00:06.5]}
44... Kd6 {[%clk 0:00:12.4]} 45. Rd7# {[%clk 0:00:07.3]} 1-0

[Event "*** Titled Tuesday Blitz"]
[Site "Chess.com"]
[Date "2020.05.05"]
[Round "6"]
[White "marszach123"]
[Black "AlexZambrano"]
[Result "0-1"]
[WhiteElo "2136"]
[BlackElo "2290"]
[TimeControl "180+1"]
[EndTime "11:07:50 PDT"]
[Termination "AlexZambrano won on time"]

1. e4 {[%clk 0:03:00.9]} 1... d5 {[%clk 0:02:59.6]} 2. exd5 {[%clk 0:02:59.5]}
2... Qxd5 {[%clk 0:02:58.4]} 3. Nf3 {[%clk 0:02:59.5]} 3... Bg4 {[%clk
0:02:58.1]} 4. Be2 {[%clk 0:02:58.6]} 4... c6 {[%clk 0:02:57.9]} 5. d4 {[%clk
0:02:57.6]} 5... Nf6 {[%clk 0:02:57.5]} 6. O-O {[%clk 0:02:53.1]} 6... e6 {[%clk
0:02:56.7]} 7. c4 {[%clk 0:02:52.7]} 7... Qd6 {[%clk 0:02:56.7]} 8. Nc3 {[%clk
0:02:51.8]} 8... Nbd7 {[%clk 0:02:55.8]} 9. Be3 {[%clk 0:02:51.6]} 9... Qc7
{[%clk 0:02:55.7]} 10. Qc2 {[%clk 0:02:39.7]} 10... Bd6 {[%clk 0:02:55]} 11. h3
{[%clk 0:02:35.8]} 11... Bxf3 {[%clk 0:02:54.7]} 12. Bxf3 {[%clk 0:02:35.7]}
12... O-O {[%clk 0:02:51.5]} 13. Rad1 {[%clk 0:02:29.6]} 13... Bf4 {[%clk
0:02:51]} 14. Rfe1 {[%clk 0:02:23.4]} 14... Rad8 {[%clk 0:02:48.6]} 15. Qc1
{[%clk 0:02:12.6]} 15... Bxe3 {[%clk 0:02:46.7]} 16. Qxe3 {[%clk 0:02:12.5]}
16... Rfe8 {[%clk 0:02:46.1]} 17. Ne4 {[%clk 0:01:58.7]} 17... Nxe4 {[%clk
0:02:44.9]} 18. Qxe4 {[%clk 0:01:55.8]} 18... Nf6 {[%clk 0:02:45.3]} 19. Qc2
{[%clk 0:01:54.9]} 19... b6 {[%clk 0:02:38.9]} 20. b3 {[%clk 0:01:47.5]} 20...
c5 {[%clk 0:02:37.9]} 21. dxc5 {[%clk 0:01:32]} 21... Qxc5 {[%clk 0:02:33.7]}
22. Rxd8 {[%clk 0:01:26]} 22... Rxd8 {[%clk 0:02:33.4]} 23. Rd1 {[%clk
0:01:26.6]} 23... Rd4 {[%clk 0:02:33.6]} 24. Rxd4 {[%clk 0:01:20.1]} 24... Qxd4
{[%clk 0:02:33.8]} 25. b4 {[%clk 0:01:13.4]} 25... g6 {[%clk 0:01:48.3]} 26. c5
{[%clk 0:01:10.5]} 26... bxc5 {[%clk 0:01:48.3]} 27. bxc5 {[%clk 0:01:07.4]}
27... Qd7 {[%clk 0:01:31.4]} 28. c6 {[%clk 0:01:06.5]} 28... Qc7 {[%clk
0:01:31.5]} 29. Qb3 {[%clk 0:01:00.6]} 29... Ne8 {[%clk 0:01:29.3]} 30. Qb7
{[%clk 0:00:55.4]} 30... Kf8 {[%clk 0:01:26.7]} 31. Kf1 {[%clk 0:00:32.1]} 31...
a5 {[%clk 0:01:22.2]} 32. Ke2 {[%clk 0:00:24.9]} 32... Qe5+ {[%clk 0:01:20.3]}
33. Kd3 {[%clk 0:00:24.3]} 33... Nc7 {[%clk 0:01:19.9]} 34. Qc8+ {[%clk
0:00:19.1]} 34... Kg7 {[%clk 0:01:15.7]} 35. Qd7 {[%clk 0:00:19.2]} 35... Qb5+
{[%clk 0:01:08.5]} 36. Ke3 {[%clk 0:00:14.2]} 36... Qe5+ {[%clk 0:01:05.5]} 37.
Kd3 {[%clk 0:00:13.8]} 37... Nb5 {[%clk 0:00:58]} 38. Kd2 {[%clk 0:00:08.5]}
38... Qc3+ {[%clk 0:00:54.8]} 39. Ke2 {[%clk 0:00:08.4]} 39... Nd4+ {[%clk
0:00:52.2]} 40. Kd1 {[%clk 0:00:02.2]} 40... Qc2+ {[%clk 0:00:51.1]} 41. Ke1
{[%clk 0:00:01.9]} 41... Qc1+ {[%clk 0:00:50.1]} 42. Bd1 {[%clk 0:00:01.6]}
42... Qc3+ {[%clk 0:00:49.5]} 43. Kf1 {[%clk 0:00:01.1]} 43... Qd3+ {[%clk
0:00:45.2]} 44. Ke1 {[%clk 0:00:01.1]} 44... Qc3+ {[%clk 0:00:36.2]} 0-1

[Event "*** Titled Tuesday Blitz"]
[Site "Chess.com"]
[Date "2020.05.05"]
[Round "6"]
[White "Ziachess74"]
[Black "realmadridtv"]
[Result "0-1"]
[WhiteElo "2556"]
[BlackElo "2381"]
[TimeControl "180+1"]
[EndTime "11:07:51 PDT"]
[Termination "realmadridtv won on time"]

1. d4 {[%clk 0:03:00.9]} 1... Nf6 {[%clk 0:02:58.8]} 2. c4 {[%clk 0:02:58.9]}
2... e6 {[%clk 0:02:58.7]} 3. Nc3 {[%clk 0:02:57.1]} 3... Bb4 {[%clk 0:02:54.6]}
4. g3 {[%clk 0:02:56.1]} 4... d5 {[%clk 0:02:49.5]} 5. Nf3 {[%clk 0:02:55.8]}
5... O-O {[%clk 0:02:47.8]} 6. Bg2 {[%clk 0:02:55.9]} 6... dxc4 {[%clk
0:02:47.8]} 7. O-O {[%clk 0:02:55.4]} 7... Nc6 {[%clk 0:02:45.3]} 8. Qa4 {[%clk
0:02:53.3]} 8... Rb8 {[%clk 0:02:33.5]} 9. Rd1 {[%clk 0:02:51]} 9... a6 {[%clk
0:02:31]} 10. Ne5 {[%clk 0:02:48]} 10... Bxc3 {[%clk 0:02:20.8]} 11. Bxc6 {[%clk
0:02:30.6]} 11... b5 {[%clk 0:02:06.3]} 12. Qa3 {[%clk 0:02:02.4]} 12... Bxd4
{[%clk 0:01:43.6]} 13. Be3 {[%clk 0:01:59.7]} 13... Bxe5 {[%clk 0:01:42.4]} 14.
Rxd8 {[%clk 0:01:58.9]} 14... Rxd8 {[%clk 0:01:43.3]} 15. Ba7 {[%clk 0:01:47.4]}
15... Bb7 {[%clk 0:01:13.1]} 16. Bxb8 {[%clk 0:01:32.7]} 16... Bxc6 {[%clk
0:01:12.4]} 17. Ba7 {[%clk 0:01:00.1]} 17... Bb7 {[%clk 0:00:53.6]} 18. f4
{[%clk 0:00:48.8]} 18... Bd6 {[%clk 0:00:49.7]} 19. Bc5 {[%clk 0:00:48]} 19...
Ne4 {[%clk 0:00:43.6]} 20. Bxd6 {[%clk 0:00:47]} 20... Rxd6 {[%clk 0:00:33.3]}
21. Qe3 {[%clk 0:00:45.3]} 21... c5 {[%clk 0:00:31.5]} 22. Rf1 {[%clk
0:00:37.6]} 22... f5 {[%clk 0:00:29.6]} 23. Rc1 {[%clk 0:00:30.3]} 23... Rd4
{[%clk 0:00:20.7]} 24. Qa3 {[%clk 0:00:22.3]} 24... Rd2 {[%clk 0:00:14.3]} 25.
Qa5 {[%clk 0:00:21.3]} 25... Bd5 {[%clk 0:00:10.1]} 26. Qd8+ {[%clk 0:00:19.9]}
26... Kf7 {[%clk 0:00:10.6]} 27. Qc7+ {[%clk 0:00:18.2]} 27... Kf8 {[%clk
0:00:10.7]} 28. Qc8+ {[%clk 0:00:13.3]} 28... Kf7 {[%clk 0:00:10.7]} 29. Qd7+
{[%clk 0:00:08.7]} 29... Kf8 {[%clk 0:00:10.4]} 30. Re1 {[%clk 0:00:02.3]} 30...
b4 {[%clk 0:00:10.4]} 31. Qc8+ {[%clk 0:00:01.4]} 31... Kf7 {[%clk 0:00:10.7]}
32. Qc7+ {[%clk 0:00:01.6]} 32... Kg6 {[%clk 0:00:10.5]} 33. Qe5 {[%clk
0:00:01.4]} 33... c3 {[%clk 0:00:09.9]} 0-1